bitfinex/quotes_ETHUSD_20241212
["timestamp","ask_amount","ask_price","bid_price","bid_amount"]
[1734001151817,0.792,3923.5,3923.0,0.11192643]
[1734001152028,0.792,3923.5,3923.1,0.11192643]
[1734001152229,0.792,3923.5,3922.9,5.54912]
[1734001152430,0.792,3923.5,3922.7,2.81691907]
[1734001152431,0.792,3923.5,3923.3,2.54886]
[1734001152735,0.792,3923.5,3923.4,0.11180307]
[1734001152927,0.7692,3923.9,3923.4,0.11180307]
[1734001153129,0.7692,3923.9,3923.5,0.11180307]
[1734001153328,0.7692,3923.9,3923.6,0.11180307]
[1734001153528,0.7692,3923.9,3923.7,0.11180307]
[1734001153841,0.7692,3923.9,3923.8,0.11180307]
[1734001153999,0.7692,3923.9,3923.8,0.11167537]
[1734001154194,0.7692,3923.9,3923.3,0.51200415]
[1734001154411,0.7692,3923.9,3923.7,2.5486]
[1734001154696,0.7692,3923.9,3923.8,0.11166433]
[1734001155155,4.01911888,3924.0,3923.8,0.11166433]
[1734001155305,4.01911888,3924.0,3923.9,0.11166433]
[1734001155498,4.01911888,3924.0,3923.9,2.66014433]
[1734001155716,4.01911888,3924.0,3923.9,0.11166433]
[1734001155911,4.01911888,3924.0,3923.8,2.66015433]
[1734001156243,4.01911888,3924.0,3923.9,0.11166433]
[1734001156451,4.01911888,3924.0,3923.9,5.66014433]
[1734001157308,4.01911888,3924.0,3923.9,5.54848]
[1734001157510,4.01911888,3924.0,3923.9,5.66012746]
[1734001158435,4.01911888,3924.0,3923.9,0.11164746]
[1734001158861,4.01911888,3924.0,3923.9,9.18081382]
[1734001159006,1.56158753,3924.0,3923.9,15.91567076]
[1734001159207,1.02578753,3924.0,3923.9,15.91567076]
[1734001159431,7.53e-06,3924.0,3923.9,13.80775935]
[1734001159738,7.53e-06,3924.0,3923.9,16.4366522]
[1734001160103,7.53e-06,3924.0,3923.9,16.56082957]
[1734001160325,7.53e-06,3924.0,3923.9,13.93193672]
[1734001160531,7.53e-06,3924.0,3923.9,13.93183549]
[1734001160920,7.53e-06,3924.0,3923.9,13.93183726]
[1734001161106,7.53e-06,3924.0,3923.9,16.56073011]
[1734001161306,7.53e-06,3924.0,3923.9,13.93183726]
[1734001162736,7.53e-06,3924.0,3923.9,14.43238098]
[1734001163318,7.53e-06,3924.0,3923.9,14.4323062]
[1734001164044,7.53e-06,3924.0,3923.9,16.53358101]
[1734001164250,7.53e-06,3924.0,3923.9,25.32358101]
[1734001164747,7.53e-06,3924.0,3923.9,23.2223062]
[1734001164947,7.53e-06,3924.0,3923.9,22.3823205]
[1734001165109,7.53e-06,3924.0,3923.9,25.19923957]
[1734001165315,7.53e-06,3924.0,3923.9,22.26752883]
[1734001165619,7.53e-06,3924.0,3923.9,20.57904902]
[1734001165841,7.53e-06,3924.0,3923.9,21.62981122]
[1734001166209,7.53e-06,3924.0,3923.9,20.57904902]
[1734001166410,7.53e-06,3924.0,3923.9,18.81289215]
[1734001166623,7.53e-06,3924.0,3923.9,21.62981122]
[1734001166830,7.53e-06,3924.0,3923.9,20.57904902]
[1734001167118,7.53e-06,3924.0,3923.9,20.4675758]
[1734001167344,7.53e-06,3924.0,3923.9,11.6775758]
[1734001167525,7.53e-06,3924.0,3923.9,11.78905067]
[1734001169440,0.79490753,3924.0,3923.9,0.95462116]
[1734001169645,7.53e-06,3924.0,3923.9,6.62549708]
[1734001169952,7.53e-06,3924.0,3923.9,9.32020993]
[1734001170547,7.53e-06,3924.0,3923.9,9.32021751]
[1734001171242,7.53e-06,3924.0,3923.9,10.43520548]
[1734001172816,7.53e-06,3924.0,3923.9,6.77173751]
[1734001173017,7.53e-06,3924.0,3923.9,6.77179804]
[1734001173337,7.53e-06,3924.0,3923.9,10.58542348]
[1734001173538,7.53e-06,3924.0,3923.9,10.47394103]
[1734001173936,7.53e-06,3924.0,3923.9,10.5854547]
[1734001174141,7.53e-06,3924.0,3923.9,11.90667463]
[1734001174567,7.53e-06,3924.0,3923.9,10.64171701]
[1734001176783,7.53e-06,3924.0,3923.9,11.90713826]
[1734001177142,7.53e-06,3924.0,3923.9,13.73680046]
[1734001177438,7.53e-06,3924.0,3923.9,12.68603826]
[1734001177639,7.53e-06,3924.0,3923.9,13.73680046]
[1734001179080,7.53e-06,3924.0,3923.9,17.17075195]
[1734001179582,7.53e-06,3924.0,3923.9,17.17122579]
[1734001179886,7.53e-06,3924.0,3923.9,26.48770068]
[1734001180211,1.25,3924.9,3924.8,5.5479]
[1734001180479,1.25,3924.9,3924.8,11.36048753]
[1734001180843,1.25,3924.9,3924.8,11.47192087]
[1734001181659,1.25,3924.9,3924.8,8.92402087]
[1734001181879,1.25,3924.9,3924.8,7.65872679]
[1734001182079,1.25,3924.9,3924.8,10.20662679]
[1734001182565,1.25,3924.9,3924.8,9.36309741]
[1734001182967,1.25,3924.9,3924.8,11.98321955]
[1734001183176,1.25,3924.9,3924.8,11.98322871]
[1734001183984,1.25,3924.9,3924.8,10.7191768]
[1734001184181,1.25,3924.9,3924.8,9.87647553]
[1734001184885,1.25,3924.9,3924.8,10.71975662]
[1734001185044,1.25,3924.9,3924.8,9.87647553]
[1734001186525,1.25,3924.9,3924.8,9.87671953]
[1734001188494,1.25,3924.9,3924.8,7.32881953]
[1734001189198,1.25,3924.9,3924.8,5.83652065]
[1734001190393,1.25,3924.9,3924.8,8.38442065]
[1734001192963,1.25,3924.9,3924.8,8.27274331]
[1734001193327,1.25,3924.9,3924.8,8.38439062]
[1734001193528,1.25,3924.9,3924.8,7.49754562]
[1734001193768,1.25,3924.9,3924.8,4.94964562]
[1734001193978,1.25,3924.9,3924.8,1.94964562]
[1734001194629,1.25,3924.9,3924.8,4.94964562]
[1734001195029,1.25,3924.9,3924.8,1.4362675]
[1734001195229,2.0412,3924.9,3924.8,1.4362675]
[1734001196163,2.0412,3924.9,3924.8,0.11164731]
[1734001196355,2.0412,3924.9,3924.8,1.4362675]
[1734001199351,2.0412,3924.9,3924.8,1.32462019]
[1734001199559,2.0412,3924.9,3924.8,1.43627888]
[1734001199742,1.25,3924.9,3924.8,1.43627888]
[1734001199944,1.25,3924.9,3924.8,8.08319508]
[1734001200139,1.25,3924.9,3924.8,9.23738066]
[1734001200696,1.25,3924.9,3924.8,9.23722928]
[1734001201485,1.25,3924.9,3924.8,7.91260909]
[1734001202166,1.25,3924.9,3924.8,8.96456335]
[1734001204085,1.25,3924.9,3924.8,8.96618794]
[1734001204990,1.25,3924.9,3924.8,8.96624314]
[1734001207990,1.25,3924.9,3924.8,8.95341453]
[1734001208588,2.0633,3924.9,3924.8,6.2741606]
[1734001208758,2.0633,3924.9,3924.8,6.54682653]
[1734001209087,2.0633,3924.9,3924.8,1.43643082]
[1734001209594,2.0633,3924.9,3924.8,0.11181063]
[1734001211168,2.0633,3924.9,3924.8,0.11185398]
[1734001211363,2.26963,3924.9,3924.8,0.11185398]
[1734001211594,4.81746,3924.9,3924.8,0.11185398]
[1734001212128,0.7714,3924.8,3924.4,1.32462019]
[1734001212274,0.7714,3924.8,3924.7,1.32462019]
[1734001212474,0.7714,3924.8,3924.7,1.43639978]
[1734001212984,0.7714,3924.8,3924.7,1.32462019]
[1734001213331,0.97354,3924.8,3924.4,1.32462019]
[1734001213479,0.97354,3924.8,3924.5,0.11171422]
[1734001213680,0.97354,3924.8,3924.4,1.32462019]
[1734001213888,0.97354,3924.8,3924.5,0.1116978]
[1734001214206,0.7891,3924.7,3924.4,1.32462019]
[1734001214518,0.7891,3924.7,3924.5,0.11167618]
[1734001214722,0.7891,3924.7,3924.4,1.32462019]
[1734001215384,0.7891,3924.7,3924.5,0.11163479]
[1734001215534,0.7891,3924.7,3924.4,1.32462019]
[1734001215746,0.7891,3924.7,3924.5,0.11161227]
[1734001216036,0.7891,3924.7,3924.4,1.32462019]
[1734001216197,0.7891,3924.7,3924.5,0.11160143]
[1734001216398,0.7891,3924.7,3924.4,1.32462019]
[1734001216619,0.7891,3924.7,3924.5,0.11157608]
[1734001216824,0.7891,3924.7,3924.4,1.32462019]
[1734001217134,0.7891,3924.7,3924.5,0.11157447]
[1734001217343,0.7891,3924.7,3924.4,1.32462019]
[1734001217638,0.7891,3924.7,3924.5,0.11156308]
[1734001217793,0.7891,3924.7,3924.4,1.32462019]
[1734001217993,0.99301,3924.7,3924.4,1.32462019]
[1734001219215,0.7891,3924.7,3924.4,1.32462019]
[1734001219550,0.7891,3924.7,3924.4,3.87276019]
[1734001221902,1.25,3924.9,3924.5,2.6594284]
[1734001222103,1.25,3924.9,3924.5,2.54803]
[1734001222334,1.25,3924.9,3924.6,0.1113865]
[1734001222502,1.25,3924.9,3924.5,2.54803]
[1734001222503,1.25,3924.9,3924.7,1.32462019]
[1734001222709,1.25,3924.9,3924.8,5.5479]
[1734001222909,1.25,3924.9,3924.8,6.48138874]
[1734001223133,1.25,3924.9,3924.8,8.5864045]
[1734001223705,1.25,3924.9,3924.8,9.63835876]
[1734001223957,1.25,3924.9,3924.8,8.5863818]
[1734001224158,1.25,3924.9,3924.8,11.47284305]
[1734001224383,1.25,3924.9,3924.8,10.42319524]
[1734001224540,1.25,3924.9,3924.8,11.47284305]
[1734001225135,1.25,3924.9,3924.8,10.42319524]
[1734001225340,1.25,3924.9,3924.8,11.47399239]
[1734001225824,1.25,3924.9,3924.8,10.42434458]
[1734001226336,1.25,3924.9,3924.8,11.47399239]
[1734001226521,1.25,3924.9,3924.8,10.42434458]
[1734001226721,1.25,3924.9,3924.8,11.47399239]
[1734001227159,1.25,3924.9,3924.8,11.36262635]
[1734001227483,1.87e-06,3926.0,3925.8,3.0]
[1734001227643,1.06630061,3927.5,3926.6,3.7946]
[1734001227964,0.1652248,3928.0,3927.4,1.32462019]
[1734001228133,0.1652248,3928.0,3927.9,2.54588]
[1734001228333,0.1652248,3928.0,3927.9,6.85039103]
[1734001228761,0.1652248,3928.0,3927.9,8.96585051]
[1734001228935,0.1652248,3928.0,3927.9,10.24592429]
[1734001229124,4.8e-06,3928.0,3927.9,10.24592429]
[1734001229329,1.63220903,3929.0,3928.9,6.33984]
[1734001229572,1.63220903,3929.0,3928.9,8.33081641]
[1734001230465,1.63220903,3929.0,3928.9,9.64696946]
[1734001230637,1.63220903,3929.0,3928.9,6.33564276]
[1734001230964,1.63220903,3929.0,3928.9,3.33984]
[1734001231275,1.63220903,3929.0,3928.5,0.7976]
[1734001231461,1.63220903,3929.0,3928.7,3.0]
[1734001234483,6.63220903,3929.0,3928.7,3.0]
[1734001235185,5.35964903,3929.0,3928.7,3.0]
[1734001237345,5.35964903,3929.0,3928.8,0.8179]
[1734001238879,5.35964903,3929.0,3928.8,1.73508469]
[1734001239189,10.35964903,3929.0,3928.8,1.73508469]
[1734001239345,10.35964903,3929.0,3928.8,0.91718469]
[1734001239680,2.3024,3931.1,3929.3,5.54498]
[1734001239881,1.55,3931.1,3930.4,2.54427]
[1734001240176,1.55,3931.1,3930.4,8.35272687]
[1734001240389,1.55,3931.1,3930.4,17.14272687]
[1734001240677,4.32526095,3930.5,3930.4,21.56178901]
[1734001240884,4.32526095,3930.5,3930.4,23.97241291]
[1734001241551,4.32526095,3930.5,3930.4,24.4852021]
[1734001241772,1.78106095,3930.5,3930.4,25.0352021]
[1734001242089,1.78106095,3930.5,3930.4,24.4852021]
[1734001242594,1.78106095,3930.5,3930.4,21.67674523]
[1734001243567,1.78106095,3930.5,3930.4,24.4852021]
[1734001244181,1.78106095,3930.5,3930.4,21.67674523]
[1734001244387,1.78106095,3930.5,3930.4,24.4852021]
[1734001244388,1.03852448,3930.5,3930.4,24.4852021]
[1734001244914,1.03852448,3930.5,3930.4,21.67674523]
[1734001248161,1.03852448,3930.5,3930.4,4.34199446]
[1734001248497,1.03852448,3930.5,3929.9,4.08392716]
[1734001248703,1.03852448,3930.5,3929.7,9.20631297]
[1734001248704,0.7973,3930.4,3929.7,0.41631297]
[1734001248855,0.7973,3930.4,3929.3,8.79]
[1734001249056,0.7973,3930.4,3929.5,3.32125782]
[1734001249285,0.7973,3930.4,3929.6,2.98650482]
[1734001249487,6.03852448,3930.5,3929.9,2.80845687]
[1734001249982,6.03852448,3930.5,3929.9,3.22476984]
[1734001250179,6.03852448,3930.5,3930.0,3.0]
[1734001251121,6.03852448,3930.5,3929.6,3.0]
[1734001251679,2.54446,3930.1,3929.5,3.51280095]
[1734001251913,0.7881,3930.3,3928.8,0.91718469]
[1734001252113,2.54472,3929.7,3928.8,0.91718469]
[1734001252279,0.7881,3930.3,3928.8,0.91718469]
[1734001252477,2.54453,3930.0,3928.8,0.91718469]
[1734001252713,2.54453,3930.0,3928.9,0.62964377]
[1734001252920,2.54442,3930.2,3929.2,0.51405814]
[1734001253079,7.05178393,3930.5,3929.2,0.51405814]
[1734001253080,2.54479,3929.6,3929.2,0.51405814]
[1734001253286,0.7616,3929.5,3929.2,0.51405814]
[1734001253505,0.7616,3929.5,3928.7,2.80845687]
[1734001253817,0.7616,3929.5,3928.8,0.28084569]
[1734001253978,2.54493,3929.4,3928.8,0.28084569]
[1734001254415,0.7616,3929.5,3928.4,10.61760925]
[1734001254993,2.54495,3929.4,3928.4,10.61760925]
[1734001255422,2.54495,3929.4,3928.4,9.41786094]
[1734001255423,2.54524,3928.9,3928.4,9.41786094]
[1734001255584,0.7616,3929.5,3927.9,2.54586]
[1734001255790,3.3065,3929.5,3927.8,2.54594]
[1734001256091,3.3065,3929.5,3928.0,0.11018415]
[1734001256092,2.54517,3929.0,3928.0,0.11018415]
[1734001256486,2.54513,3929.1,3927.9,0.61570969]
[1734001256759,0.7616,3929.5,3927.9,0.61570969]
[1734001256886,2.54516,3929.1,3928.0,0.50369155]
[1734001257190,2.54516,3929.1,3927.9,0.61570969]
[1734001257400,2.54518,3929.0,3928.0,0.89700866]
[1734001257998,0.7732,3929.4,3928.0,0.89700866]
[1734001258284,0.7732,3928.3,3927.4,0.41631297]
[1734001258491,0.7732,3928.3,3927.5,0.12456176]
[1734001258827,2.5457,3928.2,3927.2,0.7719]
[1734001259023,2.54525,3928.9,3927.7,2.54599]
[1734001259233,2.54504,3929.2,3927.8,0.60218839]
[1734001259387,2.54543,3928.6,3927.8,0.57673392]
[1734001259809,0.7893,3929.1,3927.7,0.4128923]
[1734001260089,2.54547,3928.6,3927.5,3.0]
[1734001260619,0.7893,3929.1,3927.5,3.0]
[1734001260820,3.33446,3929.1,3927.8,5.54594]
[1734001261024,3.33446,3929.1,3927.9,0.02545397]
[1734001261236,3.33446,3929.1,3928.0,0.3025454]
[1734001261237,0.7893,3929.1,3928.0,0.3025454]
[1734001262095,0.7893,3929.1,3927.5,3.0]
[1734001262405,0.7893,3929.1,3927.5,3.82920527]
[1734001262587,2.54544,3928.6,3927.5,3.82920527]
[1734001262985,2.54557,3928.4,3927.5,3.82920527]
[1734001263185,0.7921,3928.3,3927.5,4.65618751]
[1734001263393,2.54575,3928.2,3927.5,4.65618751]
[1734001263594,2.54579,3928.1,3927.0,0.82920527]
[1734001264185,0.7921,3928.3,3927.0,0.82920527]
[1734001264388,2.54584,3928.0,3927.0,0.82920527]
[1734001264609,0.7921,3928.3,3927.0,0.82920527]
[1734001264822,2.54614,3927.6,3926.7,0.41631297]
[1734001264995,2.54621,3927.5,3926.7,0.41631297]
[1734001265182,0.8113,3927.2,3926.3,1.32124604]
[1734001265381,0.8113,3927.2,3926.3,0.8214]
[1734001265582,0.23599046,3927.1,3926.4,0.16194124]
[1734001265783,0.23599926,3927.0,3926.2,0.41631297]
[1734001265982,0.8113,3927.2,3926.2,2.96330297]
[1734001266212,0.2359963,3927.1,3926.2,2.96330297]
[1734001266494,0.8113,3927.2,3926.2,2.96330297]
[1734001266684,0.8113,3927.2,3926.3,3.0]
[1734001267022,0.8113,3927.2,3926.4,0.5963303]
[1734001267186,0.8113,3927.2,3926.2,0.41631297]
[1734001267391,3.35766,3927.2,3926.2,0.41631297]
[1734001267787,2.5464,3927.1,3926.2,0.41631297]
[1734001268389,0.8113,3927.2,3926.2,0.41631297]
[1734001268589,0.8113,3927.2,3926.3,3.0]
[1734001268821,2.5464,3927.1,3926.4,0.60886643]
[1734001269026,2.5464,3927.1,3926.2,0.41631297]
[1734001269226,2.54647,3927.0,3926.2,0.41631297]
[1734001269594,2.54656,3926.9,3926.2,0.41631297]
[1734001270045,0.8113,3927.2,3926.2,2.96329297]
[1734001270249,0.8113,3927.2,3926.4,2.54684]
[1734001270400,0.8113,3927.2,3926.5,0.71262827]
[1734001270797,2.54643,3927.1,3926.5,0.41631297]
[1734001270995,2.54643,3927.1,3926.2,0.41631297]
[1734001271308,0.8113,3927.2,3926.2,0.41631297]
[1734001271515,0.8113,3927.2,3926.3,0.02546621]
[1734001271728,3.35765,3927.2,3926.3,0.41631297]
[1734001272162,3.35765,3927.2,3926.4,0.3416313]
[1734001273758,0.8113,3927.2,3926.4,0.3416313]
[1734001274058,0.8113,3927.2,3926.0,3.0]
[1734001274059,2.54653,3927.0,3926.0,3.0]
[1734001274620,5.8113,3927.2,3925.9,0.812]
[1734001274818,2.5466,3926.8,3925.9,0.812]
[1734001275016,2.5466,3926.8,3926.0,0.4228313]
[1734001275222,2.54659,3926.9,3926.0,0.4228313]
[1734001275441,5.8113,3927.2,3926.0,0.4228313]
[1734001275442,2.54661,3926.8,3926.0,0.4228313]
[1734001277019,2.5468,3926.5,3926.0,0.4228313]
[1734001277227,0.7982,3926.4,3925.5,0.41631297]
[1734001277420,2.54699,3926.2,3925.5,0.41631297]
[1734001277619,0.7982,3926.4,3925.5,0.41631297]
[1734001277863,2.54692,3926.3,3924.9,0.7811]
[1734001278045,0.7982,3926.4,3924.9,3.74518297]
[1734001278046,2.54704,3926.2,3924.9,3.74518297]
[1734001278229,0.7982,3926.4,3924.9,3.74518297]
[1734001278230,2.54718,3925.9,3925.0,0.79083127]
[1734001278745,2.54725,3925.8,3925.0,0.79083127]
[1734001278944,2.54714,3926.0,3925.0,0.79083127]
[1734001279126,2.54725,3925.8,3925.0,0.79083127]
[1734001279327,2.54725,3925.8,3925.0,0.41631297]
[1734001280064,2.54732,3925.7,3925.0,0.41631297]
[1734001280634,2.54732,3925.7,3924.5,0.12681154]
[1734001280635,2.54692,3926.3,3924.5,0.766]
[1734001280768,0.812,3925.2,3924.3,0.41631297]
[1734001280944,2.54778,3925.0,3924.3,0.41631297]
[1734001281603,0.812,3925.2,3924.3,0.41631297]
[1734001281895,2.54777,3925.0,3924.3,0.41631297]
[1734001282090,2.54777,3925.0,3924.1,0.766]
[1734001282256,2.54789,3924.9,3924.1,0.73532898]
[1734001282440,2.54798,3924.7,3923.8,0.41631297]
[1734001282640,2.5477,3925.1,3923.8,0.41631297]
[1734001282641,2.54804,3924.6,3923.8,0.41631297]
[1734001282878,0.812,3925.2,3923.8,0.41631297]
[1734001283064,2.5481,3924.5,3923.8,0.41631297]
[1734001283251,2.54777,3925.0,3923.8,0.41631297]
[1734001283461,2.54797,3924.7,3923.8,0.41631297]
[1734001284043,2.54807,3924.6,3923.8,0.41631297]
[1734001284249,0.23635815,3924.9,3923.8,0.41631297]
[1734001284250,0.7925,3924.7,3923.8,0.41631297]
[1734001284451,0.7925,3924.7,3923.3,0.7749]
[1734001284452,2.54817,3924.4,3923.4,0.55]
[1734001284647,2.54817,3924.4,3923.5,0.42554594]
[1734001284882,0.23629891,3924.3,3923.5,0.42554594]
[1734001285518,2.54842,3924.0,3922.9,0.7991]
[1734001285700,2.54861,3923.7,3922.9,0.7991]
[1734001286003,2.54869,3923.6,3922.8,0.41631297]
[1734001286148,0.8244,3923.9,3922.8,0.41631297]
[1734001286653,2.54874,3923.6,3922.8,0.41631297]
[1734001287077,2.54875,3923.5,3922.8,0.41631297]
[1734001287410,3.710166,3923.9,3922.4,0.7755]
[1734001287411,1.161686,3923.9,3922.4,0.7755]
[1734001287630,2.54889,3923.3,3922.4,0.7755]
[1734001287839,2.54894,3923.2,3922.4,0.46277265]
[1734001288139,2.78482551,3923.4,3922.2,3.43585348]
[1734001288277,2.78482551,3923.4,3922.8,2.54919]
[1734001288278,0.23601551,3923.4,3922.8,2.54919]
[1734001288476,0.23601551,3923.4,3922.9,0.254919]
[1734001288812,0.7738,3923.7,3922.9,0.254919]
[1734001288813,0.23601551,3923.3,3922.9,0.254919]
[1734001288980,0.23601551,3923.2,3922.9,0.254919]
[1734001289313,0.7738,3923.7,3922.9,0.254919]
[1734001289490,0.61307656,3923.6,3922.9,0.254919]
[1734001289686,0.61307656,3923.5,3922.7,3.0]
[1734001290004,0.61307192,3923.4,3922.7,3.0]
[1734001290403,0.61307192,3923.3,3922.3,3.33821]
[1734001290587,0.61307192,3923.3,3922.3,0.7887]
[1734001290777,0.61307192,3923.2,3922.3,0.7887]
[1734001290979,0.61307192,3923.1,3922.3,0.7887]
[1734001291206,0.61307192,3923.0,3922.4,0.333828]
[1734001291396,0.61307192,3922.9,3922.4,0.333828]
[1734001291593,0.23579689,3923.6,3922.3,0.7887]
[1734001291783,0.23579689,3923.5,3922.4,2.54945]
[1734001291986,0.23579689,3923.4,3922.9,2.5491]
[1734001292197,2.54842,3924.0,3922.8,3.0]
[1734001292487,2.54842,3924.0,3922.7,2.54922]
[1734001292488,0.23574669,3923.9,3922.7,2.54922]
[1734001292678,0.23574669,3923.8,3922.8,0.254922]
[1734001292878,2.54849,3923.9,3922.8,0.254922]
[1734001293178,0.23576199,3923.8,3922.8,0.254922]
[1734001293378,0.8115,3924.1,3922.4,3.0]
[1734001293580,0.7732,3923.3,3922.3,3.7887]
[1734001293780,0.7732,3923.3,3922.0,5.54968]
[1734001293781,2.54898,3923.2,3922.0,5.54968]
[1734001294010,2.54898,3923.2,3922.1,2.54964]
[1734001294210,0.7732,3923.3,3922.2,3.0]
[1734001294430,0.7732,3923.3,3922.3,0.32549434]
[1734001294651,0.76027892,3924.6,3923.0,2.54906]
[1734001294652,0.23581863,3923.2,3923.0,2.54906]
[1734001294869,0.8143,3923.9,3922.7,2.54921]
[1734001295003,2.78437594,3923.8,3922.7,2.54921]
[1734001295199,0.23582594,3923.7,3922.9,2.54912]
[1734001295535,0.23582594,3923.6,3922.7,2.54926]
[1734001295750,0.23582594,3923.5,3922.8,2.884506]
[1734001296056,0.23582594,3923.4,3922.8,2.884506]
[1734001296265,3.36279,3923.9,3922.8,2.884506]
[1734001296419,0.23585338,3923.3,3922.8,0.335316]
[1734001296622,0.23585338,3923.3,3922.5,0.8039]
[1734001296819,0.8143,3923.9,3922.8,2.54918]
[1734001297216,2.54797,3924.7,3922.9,0.02549045]
[1734001297513,3.35463,3924.6,3923.6,2.54867]
[1734001298227,3.35463,3924.6,3923.0,0.7553]
[1734001298228,0.8066,3924.6,3923.2,2.54888]
[1734001298565,0.5,3925.6,3923.2,2.54888]
[1734001298566,3.59199179,3925.7,3923.8,0.796]
[1734001298710,2.54771,3925.1,3924.0,2.54836]
[1734001301477,2.54777,3925.0,3923.8,3.34453]
[1734001301775,0.7591,3924.9,3923.8,3.34453]
[1734001301917,0.7591,3924.9,3923.9,2.54846]
[1734001302122,0.7591,3924.9,3924.0,0.334446]
[1734001302547,3.84199179,3926.2,3923.8,0.796]
[1734001302548,0.7591,3925.3,3923.9,0.02548401]
[1734001302787,0.7591,3925.3,3924.4,2.54814]
[1734001303692,0.7591,3925.3,3924.1,3.0]
[1734001303822,2.54771,3925.1,3923.8,0.796]
[1734001304023,3.30668,3925.3,3923.8,0.796]
[1734001304220,0.7591,3925.3,3923.9,2.882933]
[1734001304473,0.7591,3925.3,3924.6,2.54799]
[1734001304686,0.7591,3925.3,3924.1,0.8249]
[1734001304847,0.7591,3925.3,3924.7,2.54796]
[1734001305176,0.8061,3926.0,3925.1,2.54769]
[1734001305329,0.8061,3926.0,3925.1,0.634799]
[1734001305531,0.8061,3926.0,3924.8,0.8003]
[1734001305763,0.8061,3926.0,3925.0,2.54773]
[1734001306353,0.8061,3926.0,3925.1,2.54768]
[1734001306652,0.8061,3926.0,3925.2,2.54763]
[1734001307207,0.8061,3926.0,3924.8,0.8003]
[1734001307388,0.8061,3926.0,3925.4,2.5475]
[1734001307595,0.8061,3926.0,3924.9,0.38003]
[1734001307749,0.8061,3926.0,3925.1,2.54766]
[1734001307955,0.8061,3926.0,3924.8,3.8003]
[1734001308405,0.8061,3926.0,3925.3,2.54755]
[1734001311064,0.8061,3926.0,3925.6,2.54735]
[1734001311265,0.7929,3926.8,3925.7,2.54731]
[1734001311465,0.333945,3926.7,3925.7,2.54731]
[1734001311674,0.333945,3926.7,3925.2,5.54759]
[1734001311873,2.54679,3926.5,3925.2,5.54758]
[1734001312078,2.54679,3926.5,3925.2,3.0]
[1734001312281,2.54679,3926.5,3925.4,3.0]
[1734001312483,2.880759,3926.5,3925.4,2.54747]
[1734001313170,0.7711,3926.4,3925.4,2.54747]
[1734001313590,3.31797,3926.4,3925.2,5.54757]
[1734001313753,4.1831639,3926.4,3925.2,6.357105]
[1734001313956,4.1831639,3926.4,3925.3,2.54757]
[1734001316858,1.6362939,3926.4,3925.3,2.54757]
[1734001317166,0.8082,3926.3,3924.4,0.8332]
[1734001317363,0.8082,3926.3,3924.0,11.33838]
[1734001317364,2.54758,3925.3,3924.0,0.8332]
[1734001317552,0.8082,3925.0,3923.9,0.334463]
[1734001317751,2.54785,3924.9,3923.7,2.5486]
[1734001317956,0.8082,3925.0,3923.7,2.5486]
[1734001318377,3.35597,3925.0,3923.7,2.5486]
[1734001318578,3.35598,3925.0,3923.6,0.8332]
[1734001318896,3.35598,3925.0,3923.7,2.54859]
[1734001318897,2.54791,3924.8,3923.7,2.54859]
[1734001319188,0.8082,3925.0,3923.8,0.61959841]
[1734001319355,0.8082,3925.0,3923.9,2.54848]
[1734001319551,0.8082,3925.0,3924.0,2.54835]
[1734001319792,3.35599,3925.0,3923.9,2.54847]
[1734001319971,3.35599,3925.0,3924.0,0.31680684]
[1734001320156,2.54784,3924.9,3924.0,0.31680684]
[1734001320819,0.8082,3925.0,3924.0,2.86521684]
[1734001322288,0.8082,3925.0,3924.0,0.31680684]
[1734001322289,3.35602,3925.0,3924.0,0.31680684]
[1734001322598,0.8082,3925.0,3924.0,0.31680684]
[1734001322757,1.71972298,3926.2,3924.9,2.54779]
[1734001322758,2.54715,3926.0,3924.9,2.54779]
[1734001322957,3.3672,3926.2,3924.6,3.0]
[1734001323209,0.8202,3926.2,3924.6,3.0]
[1734001323361,2.54724,3925.9,3924.8,2.54786]
[1734001323761,2.54707,3926.1,3924.7,0.37512]
[1734001323956,1.40222,3926.2,3924.7,3.1893141]
[1734001324263,0.8202,3926.2,3925.0,2.54777]
[1734001324461,2.54706,3926.1,3924.9,0.7512]
[1734001324681,2.54706,3926.1,3925.0,3.0]
[1734001325129,2.54706,3926.1,3925.1,3.0]
[1734001325339,0.8202,3926.2,3925.1,3.929895]
[1734001325536,0.8202,3926.2,3924.9,0.7512]
[1734001325699,5.0,3926.5,3925.7,3.0]
[1734001325906,5.0,3926.5,3926.4,2.54686]
[1734001326221,5.0,3926.5,3926.4,5.54686]
[1734001326517,5.0,3926.5,3926.4,6.09686]
[1734001326684,5.0,3926.5,3926.4,7.31998641]
[1734001328507,5.0,3926.5,3926.4,8.12098641]
[1734001328692,1e-05,3926.5,3926.4,8.82064046]
[1734001329226,1e-05,3926.5,3926.4,12.40250765]
[1734001329719,3.71363864,3927.5,3926.7,0.8324]
[1734001329922,3.71363864,3927.5,3927.4,2.54621]
[1734001330883,0.8021,3928.6,3927.1,0.55]
[1734001331030,0.8021,3928.6,3927.4,2.54617]
[1734001331240,0.8021,3928.6,3927.1,0.55]
[1734001331241,0.8021,3928.6,3927.5,2.54614]
[1734001331433,1.136841,3928.6,3927.7,2.54601]
[1734001331632,0.8021,3928.6,3927.7,2.54601]
[1734001332060,0.8021,3928.6,3927.8,2.54591]
[1734001332213,0.8021,3928.6,3928.1,2.54574]
[1734001332410,0.7596,3929.2,3928.4,2.54556]
[1734001332636,0.7596,3929.2,3928.1,2.54571]
[1734001332834,0.7596,3929.2,3928.2,2.54568]
[1734001333065,0.7596,3929.2,3928.3,0.7542]
[1734001333290,0.7656,3929.7,3928.6,2.54539]
[1734001333475,3.31032,3929.7,3928.3,0.7542]
[1734001333608,3.31032,3929.7,3928.5,2.54548]
[1734001333805,3.31032,3929.7,3928.3,0.7542]
[1734001334002,2.875832,3929.6,3928.4,2.54556]
[1734001334459,2.875832,3929.6,3928.3,0.7542]
[1734001334747,2.54485,3929.5,3928.3,3.7542]
[1734001335033,2.54485,3929.5,3928.4,3.0]
[1734001335235,0.3641482,3929.4,3928.4,3.0]
[1734001336424,0.3641482,3929.4,3926.2,0.42162269]